[Event "Titled Tuesday Blitz July 25 Late 2023"]
[White "Martinez Reyes, Pedro Ramon"]
[Black "campochess"]
[WhiteFideId "3901807"]
[WhiteElo "2536"]
[BlackElo "2205"]
[Result "0-1"]
[Round "8"]
[TimeControl "180+2"]
[Date "2023.07.25"]
[WhiteClock "0:00:19"]
[BlackClock "0:00:13"]
[Board "69"]

1. d4 {[%clk 0:02:59]}  c5 {[%clk 0:02:59]} 2. d5 {[%clk 0:02:59]}  Nf6 {[%clk 0:02:57]} 3. c4 {[%clk 0:02:58]}  d6 {[%clk 0:02:57]} 4. Nc3 {[%clk 0:02:58]}  Bf5 {[%clk 0:02:57]} 5. f3 {[%clk 0:02:55]}  h6 {[%clk 0:02:57]} 6. e4 {[%clk 0:02:55]}  Bh7 {[%clk 0:02:57]} 7. Bd3 {[%clk 0:02:36]}  e5 {[%clk 0:02:55]} 8. Nge2 {[%clk 0:02:28]}  Na6 {[%clk 0:02:54]} 9. a3 {[%clk 0:02:27]}  Be7 {[%clk 0:02:49]} 10. Be3 {[%clk 0:02:26]}  Nc7 {[%clk 0:02:49]} 11. b4 {[%clk 0:02:21]}  b6 {[%clk 0:02:48]} 12. Bc2 {[%clk 0:02:21]}  O-O {[%clk 0:02:46]} 13. Ba4 {[%clk 0:02:20]}  a5 {[%clk 0:02:45]} 14. bxc5 {[%clk 0:02:17]}  bxc5 {[%clk 0:02:44]} 15. Bc6 {[%clk 0:02:17]}  Rb8 {[%clk 0:02:41]} 16. Nb5 {[%clk 0:02:14]}  Nfe8 {[%clk 0:02:29]} 17. Nec3 {[%clk 0:02:00]}  f5 {[%clk 0:02:27]} 18. O-O {[%clk 0:01:54]}  Nf6 {[%clk 0:02:21]} 19. exf5 {[%clk 0:01:50]}  Bxf5 {[%clk 0:02:19]} 20. Nxc7 {[%clk 0:01:44]}  Qxc7 {[%clk 0:02:18]} 21. Nb5 {[%clk 0:01:45]}  Qd8 {[%clk 0:02:17]} 22. Qa4 {[%clk 0:01:38]}  Bd7 {[%clk 0:02:04]} 23. Bd2 {[%clk 0:01:36]}  Ra8 {[%clk 0:01:55]} 24. Bxa8 {[%clk 0:01:22]}  Qxa8 {[%clk 0:01:53]} 25. Qxa5 {[%clk 0:01:18]}  Qe8 {[%clk 0:01:50]} 26. Qc7 {[%clk 0:01:04]}  Bxb5 {[%clk 0:01:40]} 27. cxb5 {[%clk 0:01:05]}  Nxd5 {[%clk 0:01:39]} 28. Qc6 {[%clk 0:01:02]}  Qxc6 {[%clk 0:01:36]} 29. bxc6 {[%clk 0:01:03]}  Rc8 {[%clk 0:01:35]} 30. a4 {[%clk 0:01:02]}  Rxc6 {[%clk 0:01:35]} 31. a5 {[%clk 0:01:03]}  Ra6 {[%clk 0:01:35]} 32. Rfb1 {[%clk 0:01:03]}  Kf7 {[%clk 0:01:26]} 33. Rb7 {[%clk 0:00:59]}  Ke6 {[%clk 0:01:25]} 34. Rab1 {[%clk 0:00:57]}  Bg5 {[%clk 0:01:20]} 35. Be1 {[%clk 0:00:55]}  Be3+ {[%clk 0:01:07]} 36. Kf1 {[%clk 0:00:55]}  g5 {[%clk 0:01:07]} 37. Ke2 {[%clk 0:00:54]}  Bd4 {[%clk 0:01:03]} 38. Kd3 {[%clk 0:00:52]}  Nf4+ {[%clk 0:01:02]} 39. Kc4 {[%clk 0:00:51]}  Nxg2 {[%clk 0:00:50]} 40. Kb5 {[%clk 0:00:51]}  Ra8 {[%clk 0:00:49]} 41. a6 {[%clk 0:00:50]}  Kd5 {[%clk 0:00:42]} 42. Ba5 {[%clk 0:00:50]}  c4 {[%clk 0:00:40]} 43. Bb6 {[%clk 0:00:48]}  c3 {[%clk 0:00:36]} 44. a7 {[%clk 0:00:47]}  Ne3 {[%clk 0:00:30]} 45. Rc7 {[%clk 0:00:35]}  Bxb6 {[%clk 0:00:28]} 46. Kxb6 {[%clk 0:00:34]}  Kd4 {[%clk 0:00:24]} 47. Rb4+ {[%clk 0:00:30]}  Kd3 {[%clk 0:00:22]} 48. Rb3 {[%clk 0:00:30]}  Nd5+ {[%clk 0:00:21]} 49. Kb7 {[%clk 0:00:23]}  Rxa7+ {[%clk 0:00:20]} 50. Kxa7 {[%clk 0:00:23]}  Nxc7 {[%clk 0:00:20]} 51. Kb6 {[%clk 0:00:23]}  Nd5+ {[%clk 0:00:20]} 52. Kc6 {[%clk 0:00:23]}  Nf4 {[%clk 0:00:18]} 53. Kxd6 {[%clk 0:00:21]}  Kd2 {[%clk 0:00:17]} 54. Kxe5 {[%clk 0:00:18]}  c2 {[%clk 0:00:17]} 55. Rb2 {[%clk 0:00:18]}  Nd3+ {[%clk 0:00:17]} 56. Kf5 {[%clk 0:00:16]}  Nxb2 {[%clk 0:00:17]} 57. Kg6 {[%clk 0:00:17]}  c1=Q {[%clk 0:00:17]} 58. Kh5 {[%clk 0:00:18]}  Ke3 {[%clk 0:00:17]} 59. h3 {[%clk 0:00:19]}  Kxf3 {[%clk 0:00:17]} 60. h4 {[%clk 0:00:20]}  Nd3 {[%clk 0:00:16]} 61. Kg6 {[%clk 0:00:20]}  Qc7 {[%clk 0:00:16]} 62. Kh5 {[%clk 0:00:21]}  Nf4+ {[%clk 0:00:17]} 63. Kxh6 {[%clk 0:00:21]}  gxh4 {[%clk 0:00:16]} 64. Kg5 {[%clk 0:00:20]}  h3 {[%clk 0:00:16]} 65. Kh4 {[%clk 0:00:21]}  h2 {[%clk 0:00:16]} 66. Kg5 {[%clk 0:00:20]}  Qe5+ {[%clk 0:00:14]} 67. Kh6 {[%clk 0:00:20]}  Qh5+ {[%clk 0:00:14]} 68. Kg7 {[%clk 0:00:19]}  h1=Q {[%clk 0:00:14]} 69. Kf6 {[%clk 0:00:19]}  Qa1+ {[%clk 0:00:14]} 70. Ke7 {[%clk 0:00:18]}  Qa6 {[%clk 0:00:15]} 71. Kd8 {[%clk 0:00:18]}  Qh7 {[%clk 0:00:15]} 72. Ke8 {[%clk 0:00:19]}  Qa8# {[%clk 0:00:13]} 0-1


[Site "https://www.chess.com"]

[Event "Titled Tuesday Blitz July 25 Late 2023"]
[White "Morefield, Jason"]
[Black "Tifferet, Shaked"]
[WhiteFideId "30920825"]
[BlackFideId "2811529"]
[WhiteElo "2736"]
[BlackElo "2486"]
[Result "1-0"]
[Round "8"]
[TimeControl "180+2"]
[Date "2023.07.25"]
[WhiteClock "0:01:05"]
[BlackClock "0:00:00"]
[Board "71"]

1. e4 {[%clk 0:03:00]}  c5 {[%clk 0:02:59]} 2. Nf3 {[%clk 0:03:01]}  e6 {[%clk 0:02:59]} 3. d4 {[%clk 0:03:01]}  cxd4 {[%clk 0:03:00]} 4. Nxd4 {[%clk 0:03:02]}  Nc6 {[%clk 0:03:00]} 5. a3 {[%clk 0:03:02]}  Nxd4 {[%clk 0:02:58]} 6. Qxd4 {[%clk 0:03:01]}  Ne7 {[%clk 0:02:58]} 7. Bd3 {[%clk 0:02:44]}  d5 {[%clk 0:02:54]} 8. O-O {[%clk 0:02:36]}  Nc6 {[%clk 0:02:51]} 9. Bb5 {[%clk 0:02:31]}  Bd7 {[%clk 0:02:45]} 10. Bxc6 {[%clk 0:02:30]}  Bxc6 {[%clk 0:02:40]} 11. exd5 {[%clk 0:02:26]}  Qxd5 {[%clk 0:02:37]} 12. Qg4 {[%clk 0:02:22]}  h5 {[%clk 0:02:35]} 13. Qh3 {[%clk 0:02:19]}  g5 {[%clk 0:02:10]} 14. Nc3 {[%clk 0:02:16]}  Qe5 {[%clk 0:02:10]} 15. f4 {[%clk 0:01:58]}  Bc5+ {[%clk 0:01:58]} 16. Kh1 {[%clk 0:01:54]}  g4 {[%clk 0:01:55]} 17. Qh4 {[%clk 0:01:48]}  Qg7 {[%clk 0:01:44]} 18. f5 {[%clk 0:01:43]}  e5 {[%clk 0:00:59]} 19. Bg5 {[%clk 0:01:39]}  Rg8 {[%clk 0:00:34]} 20. Bf6 {[%clk 0:01:34]}  Qf8 {[%clk 0:00:21]} 21. Rfe1 {[%clk 0:01:30]}  Kd7 {[%clk 0:00:20]} 22. Rad1+ {[%clk 0:01:27]}  Kc8 {[%clk 0:00:19]} 23. Bxe5 {[%clk 0:01:20]}  b6 {[%clk 0:00:13]} 24. b4 {[%clk 0:01:15]}  g3 {[%clk 0:00:10]} 25. bxc5 {[%clk 0:01:12]}  gxh2 {[%clk 0:00:08]} 26. Nd5 {[%clk 0:01:09]}  Qxc5 {[%clk 0:00:05]} 27. Ne7+ {[%clk 0:01:08]}  Kb7 {[%clk 0:00:05]} 28. Nxc6 {[%clk 0:01:08]}  Qxc6 {[%clk 0:00:05]} 29. Qe4 {[%clk 0:01:06]}  Qxe4 {[%clk 0:00:02]} 30. Rxe4 {[%clk 0:01:06]}  Rad8 {[%clk 0:00:01]} 31. Rxd8 {[%clk 0:01:06]}  Rxd8 {[%clk 0:00:02]} 32. Kxh2 {[%clk 0:01:07]}  Re8 {[%clk 0:00:03]} 33. Re3 {[%clk 0:01:07]}  f6 {[%clk 0:00:03]} 34. Bf4 {[%clk 0:01:07]}  Rd8 {[%clk 0:00:03]} 35. Re6 {[%clk 0:01:07]}  Rd5 {[%clk 0:00:03]} 36. Rxf6 {[%clk 0:01:07]}  Rc5 {[%clk 0:00:04]} 37. Rf7+ {[%clk 0:01:06]}  Ka6 {[%clk 0:00:04]} 38. f6 {[%clk 0:01:07]}  Rxc2 {[%clk 0:00:04]} 39. Re7 {[%clk 0:01:07]}  Rc4 {[%clk 0:00:05]} 40. Bh6 {[%clk 0:01:05]}  Rh4+ {[%clk 0:00:00]} 41. Kg1 {[%clk 0:01:05]} 1-0


[Site "https://www.chess.com"]

[Event "Titled Tuesday Blitz July 25 Late 2023"]
[White "Papayan, Oleg"]
[Black "brm72"]
[WhiteFideId "4193911"]
[WhiteElo "2481"]
[BlackElo "2645"]
[Result "1/2-1/2"]
[Round "8"]
[TimeControl "180+2"]
[Date "2023.07.25"]
[WhiteClock "0:00:09"]
[BlackClock "0:00:09"]
[Board "72"]

1. e4 {[%clk 0:02:58]}  c6 {[%clk 0:03:00]} 2. Nc3 {[%clk 0:02:56]}  d5 {[%clk 0:03:01]} 3. Nf3 {[%clk 0:02:57]}  dxe4 {[%clk 0:03:01]} 4. Nxe4 {[%clk 0:02:57]}  Nf6 {[%clk 0:03:02]} 5. Qe2 {[%clk 0:02:57]}  Nxe4 {[%clk 0:03:01]} 6. Qxe4 {[%clk 0:02:58]}  Nd7 {[%clk 0:03:01]} 7. Bc4 {[%clk 0:02:54]}  Nf6 {[%clk 0:03:01]} 8. Ne5 {[%clk 0:02:54]}  e6 {[%clk 0:03:02]} 9. Qe2 {[%clk 0:02:55]}  b5 {[%clk 0:03:02]} 10. Bb3 {[%clk 0:02:54]}  Qc7 {[%clk 0:03:01]} 11. d4 {[%clk 0:02:54]}  Bd6 {[%clk 0:03:01]} 12. a4 {[%clk 0:02:54]}  O-O {[%clk 0:02:53]} 13. axb5 {[%clk 0:02:48]}  cxb5 {[%clk 0:02:53]} 14. Qxb5 {[%clk 0:02:49]}  a5 {[%clk 0:02:50]} 15. Qe2 {[%clk 0:02:30]}  a4 {[%clk 0:02:09]} 16. Bc4 {[%clk 0:02:10]}  Qb6 {[%clk 0:01:55]} 17. c3 {[%clk 0:01:59]}  Bb7 {[%clk 0:01:53]} 18. O-O {[%clk 0:01:58]}  h6 {[%clk 0:01:42]} 19. Bd3 {[%clk 0:01:40]}  Qc7 {[%clk 0:01:40]} 20. Bf4 {[%clk 0:01:25]}  a3 {[%clk 0:01:35]} 21. Bg3 {[%clk 0:01:18]}  Rfb8 {[%clk 0:01:15]} 22. Nc4 {[%clk 0:01:01]}  Bxg3 {[%clk 0:01:13]} 23. fxg3 {[%clk 0:01:02]}  axb2 {[%clk 0:01:09]} 24. Qxb2 {[%clk 0:00:47]}  Ba6 {[%clk 0:00:37]} 25. Qe2 {[%clk 0:00:43]}  Bxc4 {[%clk 0:00:34]} 26. Bxc4 {[%clk 0:00:43]}  Rc8 {[%clk 0:00:31]} 27. Rxa8 {[%clk 0:00:42]}  Rxa8 {[%clk 0:00:31]} 28. Rc1 {[%clk 0:00:35]}  Ra3 {[%clk 0:00:30]} 29. Qb2 {[%clk 0:00:31]}  Qa5 {[%clk 0:00:29]} 30. Bd3 {[%clk 0:00:24]}  g6 {[%clk 0:00:28]} 31. Qb8+ {[%clk 0:00:16]}  Kg7 {[%clk 0:00:28]} 32. Qe5 {[%clk 0:00:16]}  Qxe5 {[%clk 0:00:27]} 33. dxe5 {[%clk 0:00:16]}  Nd7 {[%clk 0:00:28]} 34. Be2 {[%clk 0:00:09]}  Nxe5 {[%clk 0:00:27]} 35. c4 {[%clk 0:00:09]}  Kf8 {[%clk 0:00:16]} 36. c5 {[%clk 0:00:09]}  Ra2 {[%clk 0:00:16]} 37. Kf1 {[%clk 0:00:07]}  Ke7 {[%clk 0:00:11]} 38. c6 {[%clk 0:00:07]}  Kd8 {[%clk 0:00:10]} 39. c7+ {[%clk 0:00:07]}  Kc8 {[%clk 0:00:09]} 40. Bb5 {[%clk 0:00:02]}  Ra7 {[%clk 0:00:08]} 41. Be8 {[%clk 0:00:01]}  Rxc7 {[%clk 0:00:07]} 42. Re1 {[%clk 0:00:02]}  Nc4 {[%clk 0:00:05]} 43. Bb5 {[%clk 0:00:01]}  Nd6 {[%clk 0:00:05]} 44. Bd3 {[%clk 0:00:01]}  Kd8 {[%clk 0:00:06]} 45. Be2 {[%clk 0:00:02]}  Ke7 {[%clk 0:00:06]} 46. Bf3 {[%clk 0:00:03]}  Rc2 {[%clk 0:00:06]} 47. h3 {[%clk 0:00:03]}  Kf6 {[%clk 0:00:05]} 48. g4 {[%clk 0:00:03]}  g5 {[%clk 0:00:04]} 49. Re2 {[%clk 0:00:04]}  Rc1+ {[%clk 0:00:04]} 50. Kf2 {[%clk 0:00:04]}  Rc5 {[%clk 0:00:05]} 51. Rd2 {[%clk 0:00:05]}  Nc4 {[%clk 0:00:05]} 52. Rc2 {[%clk 0:00:04]}  Ke5 {[%clk 0:00:03]} 53. Be2 {[%clk 0:00:04]}  Kd4 {[%clk 0:00:04]} 54. Rc1 {[%clk 0:00:04]}  Ne5 {[%clk 0:00:04]} 55. Rd1+ {[%clk 0:00:04]}  Ke4 {[%clk 0:00:03]} 56. g3 {[%clk 0:00:03]}  Rc2 {[%clk 0:00:03]} 57. Ra1 {[%clk 0:00:03]}  Nd3+ {[%clk 0:00:03]} 58. Kf1 {[%clk 0:00:04]}  Ke3 {[%clk 0:00:03]} 59. Bxd3 {[%clk 0:00:04]}  Kxd3 {[%clk 0:00:04]} 60. Ra7 {[%clk 0:00:05]}  f5 {[%clk 0:00:04]} 61. Ra6 {[%clk 0:00:03]}  Ke3 {[%clk 0:00:03]} 62. Rxe6+ {[%clk 0:00:02]}  Kf3 {[%clk 0:00:04]} 63. gxf5 {[%clk 0:00:02]}  Kxg3 {[%clk 0:00:02]} 64. f6 {[%clk 0:00:02]}  Kxh3 {[%clk 0:00:01]} 65. f7 {[%clk 0:00:02]}  Rc8 {[%clk 0:00:01]} 66. Re8 {[%clk 0:00:02]}  Rc4 {[%clk 0:00:02]} 67. f8=Q {[%clk 0:00:03]}  Rg4 {[%clk 0:00:03]} 68. Kf2 {[%clk 0:00:03]}  h5 {[%clk 0:00:04]} 69. Qf3+ {[%clk 0:00:03]}  Kh4 {[%clk 0:00:05]} 70. Qf5 {[%clk 0:00:03]}  Rf4+ {[%clk 0:00:05]} 71. Qxf4+ {[%clk 0:00:04]}  gxf4 {[%clk 0:00:06]} 72. Kf3 {[%clk 0:00:04]}  Kh3 {[%clk 0:00:07]} 73. Rh8 {[%clk 0:00:05]}  h4 {[%clk 0:00:08]} 74. Rh5 {[%clk 0:00:06]}  Kh2 {[%clk 0:00:08]} 75. Rxh4+ {[%clk 0:00:06]}  Kg1 {[%clk 0:00:09]} 76. Rxf4 {[%clk 0:00:07]}  Kh2 {[%clk 0:00:09]} 77. Rg4 {[%clk 0:00:08]}  Kh1 {[%clk 0:00:09]} 78. Rg2 {[%clk 0:00:09]} 1/2-1/2


[Site "https://www.chess.com"]

[Event "Titled Tuesday Blitz July 25 Late 2023"]
[White "Aggelis, Nikolaos"]
[Black "Yeritsyan, Hayk"]
[WhiteFideId "4213220"]
[BlackFideId "13307320"]
[WhiteElo "2603"]
[BlackElo "2475"]
[Result "0-1"]
[Round "8"]
[TimeControl "180+2"]
[Date "2023.07.25"]
[WhiteClock "0:01:01"]
[BlackClock "0:00:18"]
[Board "73"]

1. c4 {[%clk 0:03:00]}  c6 {[%clk 0:02:54]} 2. Nc3 {[%clk 0:03:01]}  d5 {[%clk 0:02:54]} 3. cxd5 {[%clk 0:02:58]}  cxd5 {[%clk 0:02:54]} 4. d4 {[%clk 0:02:57]}  Nc6 {[%clk 0:02:54]} 5. Nf3 {[%clk 0:02:58]}  Nf6 {[%clk 0:02:54]} 6. Bf4 {[%clk 0:02:56]}  Bf5 {[%clk 0:02:54]} 7. e3 {[%clk 0:02:56]}  e6 {[%clk 0:02:54]} 8. Bb5 {[%clk 0:02:56]}  Bb4 {[%clk 0:02:36]} 9. Ne5 {[%clk 0:02:53]}  O-O {[%clk 0:01:52]} 10. O-O {[%clk 0:02:37]}  Nxe5 {[%clk 0:01:41]} 11. Bxe5 {[%clk 0:02:36]}  a6 {[%clk 0:01:25]} 12. Bd3 {[%clk 0:02:25]}  Bxd3 {[%clk 0:01:24]} 13. Qxd3 {[%clk 0:02:23]}  Bxc3 {[%clk 0:01:23]} 14. Qxc3 {[%clk 0:02:04]}  Ne4 {[%clk 0:01:16]} 15. Qd3 {[%clk 0:02:00]}  Qd7 {[%clk 0:01:14]} 16. f3 {[%clk 0:01:58]}  Nd6 {[%clk 0:01:12]} 17. Bxd6 {[%clk 0:01:45]}  Qxd6 {[%clk 0:01:12]} 18. Rfc1 {[%clk 0:01:42]}  Qb6 {[%clk 0:01:06]} 19. Rc2 {[%clk 0:01:34]}  Rac8 {[%clk 0:01:05]} 20. Rac1 {[%clk 0:01:31]}  Rxc2 {[%clk 0:01:04]} 21. Rxc2 {[%clk 0:01:26]}  Qa5 {[%clk 0:00:40]} 22. Kf2 {[%clk 0:01:25]}  Qxa2 {[%clk 0:00:38]} 23. Qa3 {[%clk 0:01:26]}  Qxa3 {[%clk 0:00:25]} 24. bxa3 {[%clk 0:01:27]}  g6 {[%clk 0:00:20]} 25. a4 {[%clk 0:01:19]}  b5 {[%clk 0:00:19]} 26. a5 {[%clk 0:01:11]}  Rb8 {[%clk 0:00:18]} 27. Rc6 {[%clk 0:01:08]}  b4 {[%clk 0:00:17]} 28. Rxa6 {[%clk 0:01:07]}  b3 {[%clk 0:00:18]} 29. Rb6 {[%clk 0:01:07]}  Rxb6 {[%clk 0:00:17]} 30. axb6 {[%clk 0:01:01]}  b2 {[%clk 0:00:18]} 0-1


[Site "https://www.chess.com"]

[Event "Titled Tuesday Blitz July 25 Late 2023"]
[White "Perske, Thore"]
[Black "Trifan, Andrei Ioan"]
[WhiteFideId "12902195"]
[BlackFideId "12967068"]
[WhiteElo "2468"]
[BlackElo "2576"]
[Result "0-1"]
[Round "8"]
[TimeControl "180+2"]
[Date "2023.07.25"]
[WhiteClock "0:00:06"]
[BlackClock "0:00:41"]
[Board "74"]

1. d4 {[%clk 0:03:00]}  Nf6 {[%clk 0:02:59]} 2. g3 {[%clk 0:03:01]}  g6 {[%clk 0:02:56]} 3. Bg2 {[%clk 0:03:01]}  Bg7 {[%clk 0:02:57]} 4. e4 {[%clk 0:03:01]}  d6 {[%clk 0:02:56]} 5. Ne2 {[%clk 0:03:01]}  O-O {[%clk 0:02:56]} 6. Nbc3 {[%clk 0:03:02]}  Nbd7 {[%clk 0:02:56]} 7. h3 {[%clk 0:03:02]}  c6 {[%clk 0:02:56]} 8. a4 {[%clk 0:03:01]}  e5 {[%clk 0:02:57]} 9. O-O {[%clk 0:03:01]}  exd4 {[%clk 0:02:56]} 10. Nxd4 {[%clk 0:02:59]}  Re8 {[%clk 0:02:56]} 11. Re1 {[%clk 0:02:59]}  a5 {[%clk 0:02:55]} 12. Bg5 {[%clk 0:02:36]}  Qb6 {[%clk 0:02:52]} 13. Nb3 {[%clk 0:02:23]}  Qc7 {[%clk 0:02:47]} 14. Qd2 {[%clk 0:02:20]}  Ne5 {[%clk 0:02:42]} 15. Qe2 {[%clk 0:01:48]}  Be6 {[%clk 0:02:35]} 16. Nd4 {[%clk 0:01:43]}  Bc4 {[%clk 0:02:35]} 17. Qd2 {[%clk 0:01:43]}  Ned7 {[%clk 0:02:30]} 18. b3 {[%clk 0:01:42]}  Ba6 {[%clk 0:02:30]} 19. Rad1 {[%clk 0:01:41]}  Nc5 {[%clk 0:02:19]} 20. Ndb5 {[%clk 0:01:31]}  cxb5 {[%clk 0:02:18]} 21. axb5 {[%clk 0:01:31]}  Nfxe4 {[%clk 0:02:13]} 22. Nxe4 {[%clk 0:01:28]}  Nxe4 {[%clk 0:02:09]} 23. Bxe4 {[%clk 0:01:28]}  Bc3 {[%clk 0:02:02]} 24. bxa6 {[%clk 0:00:57]}  Bxd2 {[%clk 0:01:58]} 25. axb7 {[%clk 0:00:57]}  Bxe1 {[%clk 0:01:47]} 26. bxa8=Q {[%clk 0:00:53]}  Rxa8 {[%clk 0:01:45]} 27. Bxa8 {[%clk 0:00:49]}  Bxf2+ {[%clk 0:01:27]} 28. Kxf2 {[%clk 0:00:49]}  Qa7+ {[%clk 0:01:26]} 29. Be3 {[%clk 0:00:42]}  Qxa8 {[%clk 0:01:26]} 30. Rxd6 {[%clk 0:00:42]}  Qc8 {[%clk 0:01:16]} 31. Rd2 {[%clk 0:00:31]}  Qxh3 {[%clk 0:01:06]} 32. Bd4 {[%clk 0:00:29]}  f6 {[%clk 0:01:01]} 33. Bc3 {[%clk 0:00:23]}  Qf5+ {[%clk 0:00:59]} 34. Kg2 {[%clk 0:00:20]}  h5 {[%clk 0:00:55]} 35. Rf2 {[%clk 0:00:15]}  Qd5+ {[%clk 0:00:54]} 36. Kg1 {[%clk 0:00:14]}  f5 {[%clk 0:00:53]} 37. Bd2 {[%clk 0:00:10]}  Qe4 {[%clk 0:00:50]} 38. Bg5 {[%clk 0:00:09]}  Qg4 {[%clk 0:00:44]} 39. Bf4 {[%clk 0:00:08]}  h4 {[%clk 0:00:43]} 40. Kh2 {[%clk 0:00:07]}  g5 {[%clk 0:00:42]} 41. Bd6 {[%clk 0:00:07]}  f4 {[%clk 0:00:42]} 42. gxf4 {[%clk 0:00:06]}  Qg3+ {[%clk 0:00:42]} 43. Kh1 {[%clk 0:00:05]}  Qxf2 {[%clk 0:00:41]} 44. fxg5 {[%clk 0:00:06]} 0-1


[Site "https://www.chess.com"]

[Event "Titled Tuesday Blitz July 25 Late 2023"]
[White "Roberson, Peter T"]
[Black "Petesch, Gabriel"]
[WhiteFideId "412384"]
[BlackFideId "2032465"]
[WhiteElo "2491"]
[BlackElo "2575"]
[Result "1-0"]
[Round "8"]
[TimeControl "180+2"]
[Date "2023.07.25"]
[WhiteClock "0:00:09"]
[BlackClock "0:00:00"]
[Board "75"]

1. c4 {[%clk 0:02:58]}  e5 {[%clk 0:02:39]} 2. g3 {[%clk 0:02:47]}  Nc6 {[%clk 0:02:35]} 3. Bg2 {[%clk 0:02:48]}  h5 {[%clk 0:02:34]} 4. Nf3 {[%clk 0:02:48]}  e4 {[%clk 0:02:28]} 5. Nh4 {[%clk 0:02:48]}  Nf6 {[%clk 0:02:10]} 6. Nc3 {[%clk 0:02:45]}  Qe7 {[%clk 0:01:47]} 7. d3 {[%clk 0:02:32]}  exd3 {[%clk 0:01:42]} 8. Qxd3 {[%clk 0:02:33]}  Ne5 {[%clk 0:01:28]} 9. Qd4 {[%clk 0:02:27]}  Qc5 {[%clk 0:01:22]} 10. Qxc5 {[%clk 0:02:16]}  Bxc5 {[%clk 0:01:23]} 11. b3 {[%clk 0:02:14]}  Bb4 {[%clk 0:01:09]} 12. Bb2 {[%clk 0:02:14]}  d5 {[%clk 0:00:53]} 13. cxd5 {[%clk 0:02:10]}  g5 {[%clk 0:00:51]} 14. Nf3 {[%clk 0:02:08]}  Nxd5 {[%clk 0:00:48]} 15. Rc1 {[%clk 0:01:55]}  Nxf3+ {[%clk 0:00:43]} 16. Bxf3 {[%clk 0:01:56]}  Be6 {[%clk 0:00:42]} 17. O-O {[%clk 0:01:49]}  Bxc3 {[%clk 0:00:42]} 18. Bxc3 {[%clk 0:01:50]}  Nxc3 {[%clk 0:00:41]} 19. Rxc3 {[%clk 0:01:51]}  c6 {[%clk 0:00:41]} 20. b4 {[%clk 0:01:36]}  a6 {[%clk 0:00:38]} 21. a4 {[%clk 0:01:35]}  g4 {[%clk 0:00:32]} 22. Bg2 {[%clk 0:01:30]}  Rh6 {[%clk 0:00:23]} 23. b5 {[%clk 0:01:28]}  axb5 {[%clk 0:00:22]} 24. axb5 {[%clk 0:01:28]}  Bd7 {[%clk 0:00:22]} 25. bxc6 {[%clk 0:01:21]}  bxc6 {[%clk 0:00:23]} 26. Rfc1 {[%clk 0:01:21]}  Ra2 {[%clk 0:00:23]} 27. R3c2 {[%clk 0:01:18]}  Rxc2 {[%clk 0:00:22]} 28. Rxc2 {[%clk 0:01:19]}  Rd6 {[%clk 0:00:20]} 29. Rc1 {[%clk 0:01:02]}  Kd8 {[%clk 0:00:21]} 30. Kf1 {[%clk 0:01:01]}  Kc7 {[%clk 0:00:22]} 31. e3 {[%clk 0:00:53]}  Rd2 {[%clk 0:00:20]} 32. Ke1 {[%clk 0:00:48]}  Ra2 {[%clk 0:00:19]} 33. Rd1 {[%clk 0:00:47]}  Be8 {[%clk 0:00:14]} 34. Rd2 {[%clk 0:00:47]}  Ra1+ {[%clk 0:00:14]} 35. Rd1 {[%clk 0:00:47]}  Ra2 {[%clk 0:00:14]} 36. Rd2 {[%clk 0:00:47]}  Ra3 {[%clk 0:00:15]} 37. Rc2 {[%clk 0:00:43]}  Bd7 {[%clk 0:00:14]} 38. Kd2 {[%clk 0:00:42]}  Rb3 {[%clk 0:00:14]} 39. Bd5 {[%clk 0:00:37]}  Rb5 {[%clk 0:00:10]} 40. Bxf7 {[%clk 0:00:36]}  Rf5 {[%clk 0:00:10]} 41. Bg6 {[%clk 0:00:31]}  Rxf2+ {[%clk 0:00:10]} 42. Kd3 {[%clk 0:00:27]}  Rf6 {[%clk 0:00:07]} 43. Bxh5 {[%clk 0:00:24]}  Rf5 {[%clk 0:00:04]} 44. Bg6 {[%clk 0:00:20]}  Rd5+ {[%clk 0:00:05]} 45. Ke2 {[%clk 0:00:19]}  c5 {[%clk 0:00:04]} 46. e4 {[%clk 0:00:16]}  Bb5+ {[%clk 0:00:03]} 47. Ke3 {[%clk 0:00:15]}  Rd3+ {[%clk 0:00:03]} 48. Kf4 {[%clk 0:00:15]}  c4 {[%clk 0:00:04]} 49. Kxg4 {[%clk 0:00:15]}  Kd6 {[%clk 0:00:04]} 50. e5+ {[%clk 0:00:15]}  Kxe5 {[%clk 0:00:02]} 51. Bxd3 {[%clk 0:00:16]}  cxd3 {[%clk 0:00:03]} 52. Rc5+ {[%clk 0:00:09]}  Ke4 {[%clk 0:00:03]} 53. Rxb5 {[%clk 0:00:09]}  d2 {[%clk 0:00:03]} 54. Rb1 {[%clk 0:00:09]}  d1=Q+ {[%clk 0:00:00]} 55. Rxd1 {[%clk 0:00:09]} 1-0


[Site "https://www.chess.com"]